Workbook

Sheet ORÇAMENTO
A1: <---- NUMERAR SERVIÇOS PARA CPU | C1: Ministério do Desenvolvimento Regional
C2: Companhia de Desenvolvimento dos Vales do São Francisco e do Parnaíba
C3: 1ª Superintendência Regional
B5: OBRA: | C5: PAVIMENTAÇÃO EM BLOQUETE SEXTAVADOS - RUA HERCULANO VELOSO - FELÍCIO DOS SANTOS/MG
B6: DATA: | C6: SETEMBRO/2023 | G6: BDI Serviços: | I6: ='BDI SERV'!D30/100 -> 0.2149
B7: PRAZO DE EXECUÇÃO: 120 DIAS
B8: ITEM | C8: DISCRIMINAÇÃO | D8: REFER. | E8: UNID. | F8: QUANT. | G8: P. UNITÁRIO | H8: P.UNIT.C/ BDI | I8: P. TOTAL
A9: A | B9: 1 | C9: SERVIÇOS PRELIMINARES | I9: =SUM(I10:I14) -> 80368.07
A10: 1 | B10: 1.1 | C10: MOBILIZAÇÃO E DESMOBILIZAÇÃO | D10: CPU.1 | E10: GL | F10: 1 | G10: =VLOOKUP(A10,CPU!$A$1:$N$4522,9) -> 4047.6 | H10: =VLOOKUP(A10,CPU!$A$1:$N$4522,10) -> 4917.42924 | I10: =ROUND(F10*H10,2) -> 4917.43
A11: 2 | B11: 1.2 | C11: ADMINISTRAÇÃO LOCAL | D11: CPU.2 | E11: GL | F11: 1 | G11: =VLOOKUP(A11,CPU!$A$1:$N$4522,9) -> 50735.48 | H11: =VLOOKUP(A11,CPU!$A$1:$N$4522,10) -> 61638.53465 | I11: =ROUND(F11*H11,2) -> 61638.53
A12: 3 | B12: 1.3 | C12: CANTEIRO DE OBRAS | D12: CPU.3 | E12: GL | F12: 1 | G12: =VLOOKUP(A12,CPU!$A$1:$N$4522,9) -> 9144 | H12: =VLOOKUP(A12,CPU!$A$1:$N$4522,10) -> 11109.0456 | I12: =ROUND(F12*H12,2) -> 11109.05
A13: 4 | B13: 1.4 | C13: PLACA DE OBRA EM CHAPA DE AÇO GALVANIZADO | D13: 103689 | E13: M2 | F13: 4.5 | G13: =VLOOKUP(A13,CPU!$A$1:$N$4522,9) -> 307.76 | H13: =VLOOKUP(A13,CPU!$A$1:$N$4522,10) -> 373.897624 | I13: =ROUND(F13*H13,2) -> 1682.54
A14: 5 | B14: 1.5 | C14: LOCAÇÃO DE PAVIMENTAÇÃO | D14: 99064 | E14: M | F14: 1200 | G14: =VLOOKUP(A14,CPU!$A$1:$N$4522,9) -> 0.7 | H14: =VLOOKUP(A14,CPU!$A$1:$N$4522,10) -> 0.85043 | I14: =ROUND(F14*H14,2) -> 1020.52
A15: B | B15: 2 | C15: PAVIMENTAÇÃO | I15: =SUM(I16:I20) -> 566177.42
A16: 6 | B16: 2.1 | C16: ESCAVAÇÃO HORIZONTAL EM SOLO DE 1A CATEGORIA COM TRATOR DE ESTEIRAS | D16: 101116 | E16: M3 | F16: 4000 | G16: =VLOOKUP(A16,CPU!$A$1:$N$4522,9) -> 2.2 | H16: =VLOOKUP(A16,CPU!$A$1:$N$4522,10) -> 2.67278 | I16: =ROUND(F16*H16,2) -> 10691.12
A17: 7 | B17: 2.2 | C17: CARGA, MANOBRA E DESCARGA DE SOLOS E MATERIAIS GRANULARES EM CAMINHÃO BASCULANTE - CARGA COM PÁ CARREGADEIRA E DESCARGA LIVRE | D17: 100976 | E17: M3 | F17: 4000 | G17: =VLOOKUP(A17,CPU!$A$1:$N$4522,9) -> 8.71 | H17: =VLOOKUP(A17,CPU!$A$1:$N$4522,10) -> 10.581779 | I17: =ROUND(F17*H17,2) -> 42327.12
A18: 8 | B18: 2.3 | C18: REGULARIZAÇÃO E COMPACTAÇÃO DE SUBLEITO | D18: 100576 | E18: M2 | F18: 7000 | G18: =VLOOKUP(A18,CPU!$A$1:$N$4522,9) -> 2.57 | H18: =VLOOKUP(A18,CPU!$A$1:$N$4522,10) -> 3.122293 | I18: =ROUND(F18*H18,2) -> 21856.05
A19: 8.5 | B19: 2.4 | C19: EXECUÇÃO E COMPACTAÇÃO DE BASE E OU SUB BASE PARA PAVIMENTAÇÃO DE SOLO DE COMPORTAMENTO LATERÍTICO - EXCLUSIVE SOLO, ESCAVAÇÃO, CARGA E TRANSPORTE | D19: 96388 | E19: M3 | F19: 1400 | G19: =VLOOKUP(A19,CPU!$A$1:$N$4522,9) -> 12.47 | H19: =VLOOKUP(A19,CPU!$A$1:$N$4522,10) -> 15.149803 | I19: =ROUND(F19*H19,2) -> 21209.72
A20: 9 | B20: 2.5 | C20: EXECUÇÃO DE PAVIMENTO EM PISO INTERTRAVADO, COM BLOCO SEXTAVADO DE CONCRETO DE 25 X 25 CM, ESPESSURA 8 CM | D20: 92394 | E20: M2 | F20: 6000 | G20: =VLOOKUP(A20,CPU!$A$1:$N$4522,9) -> 64.49 | H20: =VLOOKUP(A20,CPU!$A$1:$N$4522,10) -> 78.348901 | I20: =ROUND(F20*H20,2) -> 470093.41
A21: C | B21: 3 | C21: TRANSPORTE DE MATERIAIS | I21: =SUM(I22:I23) -> 116946.27
A22: 10 | B22: 3.1 | C22: TRANSPORTE COM CAMINHÃO BASCULANTE, EM VIA URBANA PAVIMENTADA | D22: 95427 | E22: M3XKM | F22: 26000.00162 | G22: =VLOOKUP(A22,CPU!$A$1:$N$4522,9) -> 0.73 | H22: =VLOOKUP(A22,CPU!$A$1:$N$4522,10) -> 0.886877 | I22: =ROUND(F22*H22,2) -> 23058.8
A23: 11 | B23: 3.2 | C23: TRANSPORTE COM CAMINHÃO CARROCERIA, EM VIA URBANA PAVIMENTADA | D23: 100948 | E23: TXKM | F23: 92000.00186 | G23: =VLOOKUP(A23,CPU!$A$1:$N$4522,9) -> 0.84 | H23: =VLOOKUP(A23,CPU!$A$1:$N$4522,10) -> 1.020516 | I23: =ROUND(F23*H23,2) -> 93887.47
A24: D | B24: 4 | C24: DRENAGEM E OBRAS COMPLEMENTARES | I24: =SUM(I25:I28) -> 334744.24
A25: 12 | B25: 4.1 | C25: EXECUÇÃO DE PASSEIO (CALÇADA) OU PISO DE CONCRETO COM CONCRETO MOLDADO IN LOCO, FEITO EM OBRA, ACABAMENTO CONVENCIONAL, NÃO ARMADO. | D25: 94990 | E25: M3 | F25: 210 | G25: =VLOOKUP(A25,CPU!$A$1:$N$4522,9) -> 773.45 | H25: =VLOOKUP(A25,CPU!$A$1:$N$4522,10) -> 939.664405 | I25: =ROUND(F25*H25,2) -> 197329.53
A26: 13 | B26: 4.2 | C26: GUIA (MEIO-FIO) E SARJETA CONJUGADOS DE CONCRETO, MOLDADA IN LOCO EM TRECHO RETO COM EXTRUSORA, 45 CM BASE (15 CM BASE DA GUIA + SARJETA (30 X 0,05))X 22 CM ALTURA | D26: 94267 | E26: M | F26: 2300 | G26: =VLOOKUP(A26,CPU!$A$1:$N$4522,9) -> 47.86 | H26: =VLOOKUP(A26,CPU!$A$1:$N$4522,10) -> 58.145114 | I26: =ROUND(F26*H26,2) -> 133733.76
A27: 14 | B27: 4.3 | C27: FORNECIMENTO E INSTALAÇÃO DE PLACA DE SINALIZAÇÃO VIÁRIA - REGULAMENTAÇÃO 0,60MX0,60M, SUPORTE INCLUSO | D27: CPU.4 | E27: UNID. | F27: 6 | G27: =VLOOKUP(A27,CPU!$A$1:$N$4522,9) -> 386.98 | H27: =VLOOKUP(A27,CPU!$A$1:$N$4522,10) -> 470.142002 | I27: =ROUND(F27*H27,2) -> 2820.85
A28: 15 | B28: 4.4 | C28: FORNECIMENTO E INSTALAÇÃO DE PLACA DE IDENTIFICAÇÃO DE LOGRADOURO, SUPORTE INCLUSO - CONFORME PROJETO | D28: CPU.5 | E28: UNID. | F28: 2 | G28: =VLOOKUP(A28,CPU!$A$1:$N$4522,9) -> 353.98 | H28: =VLOOKUP(A28,CPU!$A$1:$N$4522,10) -> 430.050302 | I28: =ROUND(F28*H28,2) -> 860.1
B29: TOTAL GERAL DA OBRA COM BDI | I29: =SUM(I9,I15,I21,I24) -> 1098236

Sheet CPU
A1: 1 | B1: CODEVASF | E1: COMPOSIÇÃO DE PREÇO UNITÁRIO | I1: =H11 -> 4047.6 | J1: =H13 -> 4917.42924 | K1: BDI CALCULADO: | M1: =ORÇAMENTO!I6 -> 0.2149
B2: OBRA: | C2: =ORÇAMENTO!C5 -> PAVIMENTAÇÃO EM BLOQUETE SEXTAVADOS - RUA HERCULANO VELOSO - FELÍCIO DOS SANTOS/MG | G2: DATA: | H2: =ORÇAMENTO!C6 -> SETEMBRO/2023
B3: SERVIÇO: | C3: =VLOOKUP(A1,ORÇAMENTO!A10:I26,3) -> MOBILIZAÇÃO E DESMOBILIZAÇÃO | E3: Referência: | F3: =VLOOKUP(A1,ORÇAMENTO!A10:I26,4) -> CPU.1 | G3: UNIDADE: | H3: =VLOOKUP(A1,ORÇAMENTO!A10:I26,5) -> GL
B5: TIPO ITEM | C5: CODIGO ITEM | D5: DESCRIÇÃO ITEM | E5: UNIDADE ITEM | F5: COEFICIENTE | G5: PRECO UNITARIO | H5: CUSTO TOTAL
B6: COMPOSICAO | C6: 5824 | D6: CAMINHÃO TOCO, PBT 16.000 KG, CARGA ÚTIL MÁX. 10.685 KG, DIST. ENTRE EIXOS 4,8 M, POTÊNCIA 189 CV, INCLUSIVE CARROCERIA FIXA ABERTA DE MADEIRA P/ TRANSPORTE GERAL DE CARGA SECA | E6: CHP | F6: 8 | G6: 202,74 | H6: =ROUNDDOWN(F6*G6,2) -> 1621.92 | M6: .
B7: COMPOSICAO | C7: 5826 | D7: CAMINHÃO TOCO, PBT 16.000 KG, CARGA ÚTIL MÁX. 10.685 KG, DIST. ENTRE EIXOS 4,8 M, POTÊNCIA 189 CV, INCLUSIVE CARROCERIA FIXA ABERTA DE MADEIRA P/ TRANSPORTE GERAL DE CARGA SECA | E7: CHI | F7: 4 | G7: 60,95 | H7: =ROUNDDOWN(F7*G7,2) -> 243.8
B8: COMPOSIÇÃO | C8: 88316 | D8: SERVENTE COM ENCARGOS COMPLEMENTARES | E8: H | F8: 8 | G8: 19,76 | H8: =ROUNDDOWN(F8*G8,2) -> 158.08
H9: =ROUNDDOWN(F9*G9,2) -> 0
B10: PRODUÇÃO DA EQUIPE | E10: 0.5 | F10: CUSTO | H10: =SUM(H6:H9) -> 2023.8
B11: TOTAL | H11: =H10/E10 -> 4047.6 | I11: OK
B12: BDI % | H12: =1+$M$1 -> 1.2149
B13: TOTAL DO SERVIÇO - R$ | H13: =H11*H12 -> 4917.42924
A15: =A1+1 -> 2 | B15: CODEVASF | E15: COMPOSIÇÃO DE PREÇO UNITÁRIO | I15: =H28 -> 50735.48 | J15: =H30 -> 61638.53465
B16: OBRA: | C16: =$C$2 -> PAVIMENTAÇÃO EM BLOQUETE SEXTAVADOS - RUA HERCULANO VELOSO - FELÍCIO DOS SANTOS/MG | G16: DATA: | H16: =$H$2 -> SETEMBRO/2023
B17: SERVIÇO: | C17: =VLOOKUP(A15,ORÇAMENTO!$A$10:$I$26,3) -> ADMINISTRAÇÃO LOCAL | E17: SINAPI | F17: CPU | G17: UNIDADE: | H17: =VLOOKUP(A15,ORÇAMENTO!$A$10:$I$26,5) -> GL
B19: TIPO ITEM | C19: CODIGO ITEM | D19: DESCRIÇÃO ITEM | E19: UNIDADE ITEM | F19: COEFICIENTE | G19: PRECO UNITARIO | H19: CUSTO TOTAL
B20: INSUMO | C20: 14250 | D20: ENERGIA ELÉTRICA | E20: kwh | F20: 60 | G20: 0,94 | H20: =ROUNDDOWN(F20*G20,2) -> 56.4
B21: INSUMO | C21: 44480 | D21: TARIFA "A" ENTRE 0 E 20 M³ - FORNECIMENTO D'ÁGUA | E21: m³ | F21: 4 | G21: 17,78 | H21: =ROUNDDOWN(F21*G21,2) -> 71.12
B22: COTAÇÃO | C22: MERC. | D22: TELEFONE (PLANO CONTROLE) | E22: UNID | F22: 3 | G22: 60 | H22: 180
B23: COMPOSICAO | C23: 90777 | D23: ENGENHEIRO CIVIL DE OBRA COM ENCARGOS COMPLEMENTARES | E23: H | F23: 45 | G23: 114,12 | H23: 5135.4
B24: COMPOSICAO | C24: 90776 | D24: ENCARREGADO GERAL COM ENCARGOS COMPLEMENTARES | E24: H | F24: 90 | G24: 57,73 | H24: =ROUNDDOWN(F24*G24,2) -> 5195.7
B25: COMPOSICAO | C25: 88321 | D25: TÉCNICO DE LABORATÓRIO COM ENCARGOS COMPLEMENTARES | E25: H | F25: 45 | G25: 45,45 | H25: =ROUNDDOWN(F25*G25,2) -> 2045.25
H26: 0
B27: PRODUÇÃO DA EQUIPE | E27: =1/4 -> 0.25 | F27: CUSTO | H27: =SUM(H20:H26) -> 12683.87
B28: TOTAL | H28: =H27/E27 -> 50735.48 | I28: OK
B29: BDI % | H29: =1+$M$1 -> 1.2149
B30: TOTAL DO SERVIÇO - R$ | H30: =H28*H29 -> 61638.53465
A32: =A15+1 -> 3 | B32: CODEVASF | E32: COMPOSIÇÃO DE PREÇO UNITÁRIO | I32: =H42 -> 9144 | J32: =H44 -> 11109.0456
B33: OBRA: | C33: =$C$2 -> PAVIMENTAÇÃO EM BLOQUETE SEXTAVADOS - RUA HERCULANO VELOSO - FELÍCIO DOS SANTOS/MG | G33: DATA: | H33: =$H$2 -> SETEMBRO/2023
B34: SERVIÇO: | C34: =VLOOKUP(A32,ORÇAMENTO!$A$10:$I$26,3) -> CANTEIRO DE OBRAS | E34: SINAPI | F34: =VLOOKUP(A32,ORÇAMENTO!$A$10:$I$26,4) -> CPU.3 | G34: UNIDADE: | H34: =VLOOKUP(A32,ORÇAMENTO!$A$10:$I$26,5) -> GL
B36: TIPO ITEM | C36: CODIGO ITEM | D36: DESCRIÇÃO ITEM | E36: UNIDADE ITEM | F36: COEFICIENTE | G36: PRECO UNITARIO | H36: CUSTO TOTAL
B37: COTAÇÃO | C37: 10775 | D37: ALUGUEL DE IMÓVEL OU CONTEINER QUE ATENDA AOS REQUISITOS MÍNIMOS PARA INSTALAÇÃO DO CANTEIRO DE OBRAS | E37: MÊS | F37: 4 | G37: 975 | H37: =ROUNDDOWN(F37*G37,2) -> 3900
B38: INSUMO | C38: 10779 | D38: LOCACAO DE CONTAINER 2,30 X 4,30 M, ALT. 2,50 M, P/ SANITARIO, C/ 5 BACIAS, 1 LAVATORIO E 4 MICTORIOS | E38: MÊS | F38: 4 | G38: 1218.75 | H38: =ROUNDDOWN(F38*G38,2) -> 4875
B39: INSUMO | C39: 37525 | D39: TELA PLASTICA TECIDA LISTRADA BRANCA E LARANJA, TIPO GUARDA CORPO, EM POLIETILENO MONOFILADO, ROLO 1,20 X 50 M (L X C) | E39: M | F39: 100 | G39: 3.69 | H39: 369
H40: 0
B41: PRODUÇÃO DA EQUIPE | E41: 1 | F41: CUSTO | H41: =SUM(H37:H40) -> 9144
B42: TOTAL | H42: =H41/E41 -> 9144 | I42: OK
B43: BDI % | H43: =1+$M$1 -> 1.2149
B44: TOTAL DO SERVIÇO - R$ | H44: =H42*H43 -> 11109.0456
A46: =A32+1 -> 4 | B46: CODEVASF | E46: COMPOSIÇÃO DE PREÇO UNITÁRIO | I46: =H60 -> 307.76 | J46: =H62 -> 373.897624
B47: OBRA: | C47: =$C$2 -> PAVIMENTAÇÃO EM BLOQUETE SEXTAVADOS - RUA HERCULANO VELOSO - FELÍCIO DOS SANTOS/MG | G47: DATA: | H47: =$H$2 -> SETEMBRO/2023
B48: SERVIÇO: | C48: =VLOOKUP(A46,ORÇAMENTO!$A$10:$I$26,3) -> PLACA DE OBRA EM CHAPA DE AÇO GALVANIZADO | E48: SINAPI | F48: =VLOOKUP(A46,ORÇAMENTO!$A$10:$I$26,4) -> 103689 | G48: UNIDADE: | H48: =VLOOKUP(A46,ORÇAMENTO!$A$10:$I$26,5) -> M2
B50: TIPO ITEM | C50: CODIGO ITEM | D50: DESCRIÇÃO ITEM | E50: UNIDADE ITEM | F50: COEFICIENTE | G50: PRECO UNITARIO | H50: CUSTO TOTAL
B51: INSUMO | C51: 4509 | D51: SARRAFO *2,5 X 10* CM EM PINUS, MISTA OU EQUIVALENTE DA REGIAO - BRUTA | E51: M | F51: 3,2083000 | G51: 4,41 | H51: =ROUNDDOWN(F51*G51,2) -> 14.14
B52: INSUMO | C52: 4813 | D52: PLACA DE OBRA (PARA CONSTRUCAO CIVIL) EM CHAPA GALVANIZADA *N. 22*, ADESIVADA, DE *2,4 X 1,2* M (SEM POSTES PARA FIXACAO) | E52: M2 | F52: 1,0000000 | G52: 250,00 | H52: =ROUNDDOWN(F52*G52,2) -> 250
B53: INSUMO | C53: 5065 | D53: PREGO DE ACO POLIDO COM CABECA 10 X 10 (7/8 X 17) | E53: KG | F53: 0,0113000 | G53: 36,57 | H53: 0.41
B54: INSUMO | C54: 5069 | D54: PREGO DE ACO POLIDO COM CABECA 17 X 27 (2 1/2 X 11) | E54: KG | F54: 0,0132000 | G54: 19,59 | H54: 0.25
B55: COMPOSICAO | C55: 88262 | D55: CARPINTEIRO DE FORMAS COM ENCARGOS COMPLEMENTARES | E55: H | F55: 0,3729000 | G55: 27,05 | H55: 10.08
B56: COMPOSICAO | C56: 88316 | D56: SERVENTE COM ENCARGOS COMPLEMENTARES | E56: H | F56: 1,1186000 | G56: 19,76 | H56: 22.1
B57: COMPOSICAO | C57: 102234 | D57: PINTURA IMUNIZANTE PARA MADEIRA, 2 DEMÃOS | E57: M2 | F57: 0,5000000 | G57: 21,57 | H57: =ROUNDDOWN(F57*G57,2) -> 10.78
H58: 0
B59: PRODUÇÃO DA EQUIPE | E59: 1 | F59: CUSTO | H59: =SUM(H51:H58) -> 307.76
B60: TOTAL | H60: =H59/E59 -> 307.76 | I60: OK
B61: BDI % | H61: =1+$M$1 -> 1.2149
B62: TOTAL DO SERVIÇO - R$ | H62: =H60*H61 -> 373.897624
A64: =A46+1 -> 5 | B64: CODEVASF | E64: COMPOSIÇÃO DE PREÇO UNITÁRIO | I64: =H71 -> 0.7 | J64: =H73 -> 0.85043
B65: OBRA: | C65: =$C$2 -> PAVIMENTAÇÃO EM BLOQUETE SEXTAVADOS - RUA HERCULANO VELOSO - FELÍCIO DOS SANTOS/MG | G65: DATA: | H65: =$H$2 -> SETEMBRO/2023
B66: SERVIÇO: | C66: =VLOOKUP(A64,ORÇAMENTO!$A$10:$I$26,3) -> LOCAÇÃO DE PAVIMENTAÇÃO | E66: SINAPI | F66: =VLOOKUP(A64,ORÇAMENTO!$A$10:$I$26,4) -> 99064 | G66: UNIDADE: | H66: =VLOOKUP(A64,ORÇAMENTO!$A$10:$I$26,5) -> M
B68: TIPO ITEM | C68: CODIGO ITEM | D68: DESCRIÇÃO ITEM | E68: UNIDADE ITEM | F68: COEFICIENTE | G68: PRECO UNITARIO | H68: CUSTO TOTAL
B69: COMPOSICAO | C69: 99058 | D69: LOCAÇÃO DE PONTO PARA REFERÊNCIA TOPOGRÁFICA | E69: UN | F69: 0,0500000 | G69: 14,14 | H69: =ROUNDDOWN(F69*G69,2) -> 0.7
B70: PRODUÇÃO DA EQUIPE | E70: 1 | F70: CUSTO | H70: =SUM(H69:H69) -> 0.7
B71: TOTAL | H71: =H70/E70 -> 0.7 | I71: OK
B72: BDI % | H72: =1+$M$1 -> 1.2149
B73: TOTAL DO SERVIÇO - R$ | H73: =H71*H72 -> 0.85043
A75: =A64+1 -> 6 | B75: CODEVASF | E75: COMPOSIÇÃO DE PREÇO UNITÁRIO | I75: =H84 -> 2.2 | J75: =H86 -> 2.67278
B76: OBRA: | C76: =$C$2 -> PAVIMENTAÇÃO EM BLOQUETE SEXTAVADOS - RUA HERCULANO VELOSO - FELÍCIO DOS SANTOS/MG | G76: DATA: | H76: =$H$2 -> SETEMBRO/2023
B77: SERVIÇO: | C77: =VLOOKUP(A75,ORÇAMENTO!$A$10:$I$26,3) -> ESCAVAÇÃO HORIZONTAL EM SOLO DE 1A CATEGORIA COM TRATOR DE ESTEIRAS | E77: SINAPI | F77: =VLOOKUP(A75,ORÇAMENTO!$A$10:$I$26,4) -> 101116 | G77: UNIDADE: | H77: =VLOOKUP(A75,ORÇAMENTO!$A$10:$I$26,5) -> M3
B79: TIPO ITEM | C79: CODIGO ITEM | D79: DESCRIÇÃO ITEM | E79: UNIDADE ITEM | F79: COEFICIENTE | G79: PRECO UNITARIO | H79: CUSTO TOTAL
B80: COMPOSICAO | C80: 5847 | D80: TRATOR DE ESTEIRAS, POTÊNCIA 170 HP, PESO OPERACIONAL 19 T, CAÇAMBA 5,2 M3 - CHP DIURNO. AF_06/2014 | E80: CHP | F80: 0,0048000 | G80: 253,93 | H80: =ROUNDDOWN(F80*G80,2) -> 1.21
B81: COMPOSICAO | C81: 5849 | D81: TRATOR DE ESTEIRAS, POTÊNCIA 170 HP, PESO OPERACIONAL 19 T, CAÇAMBA 5,2 M3 - CHI DIURNO. AF_06/2014 | E81: CHI | F81: 0,0082000 | G81: 90,40 | H81: =ROUNDDOWN(F81*G81,2) -> 0.74
B82: COMPOSICAO | C82: 88316 | D82: SERVENTE COM ENCARGOS COMPLEMENTARES | E82: H | F82: 0,0131000 | G82: 19,76 | H82: =ROUNDDOWN(F82*G82,2) -> 0.25
B83: PRODUÇÃO DA EQUIPE | E83: 1 | F83: CUSTO | H83: =SUM(H80:H82) -> 2.2
B84: TOTAL | H84: =H83/E83 -> 2.2 | I84: OK
B85: BDI % | H85: =1+$M$1 -> 1.2149
B86: TOTAL DO SERVIÇO - R$ | H86: =H84*H85 -> 2.67278
A88: 7 | B88: CODEVASF | E88: COMPOSIÇÃO DE PREÇO UNITÁRIO | I88: =H98 -> 8.71 | J88: =H100 -> 10.581779
B89: OBRA: | C89: =$C$2 -> PAVIMENTAÇÃO EM BLOQUETE SEXTAVADOS - RUA HERCULANO VELOSO - FELÍCIO DOS SANTOS/MG | G89: DATA: | H89: =$H$2 -> SETEMBRO/2023
B90: SERVIÇO: | C90: =VLOOKUP(A88,ORÇAMENTO!$A$10:$I$26,3) -> CARGA, MANOBRA E DESCARGA DE SOLOS E MATERIAIS GRANULARES EM CAMINHÃO BASCULANTE - CARGA COM PÁ CARREGADEIRA E DESCARGA LIVRE | E90: SINAPI | F90: =VLOOKUP(A88,ORÇAMENTO!$A$10:$I$26,4) -> 100976 | G90: UNIDADE: | H90: =VLOOKUP(A88,ORÇAMENTO!$A$10:$I$26,5) -> M3
B92: TIPO ITEM | C92: CODIGO ITEM | D92: DESCRIÇÃO ITEM | E92: UNIDADE ITEM | F92: COEFICIENTE | G92: PRECO UNITARIO | H92: CUSTO TOTAL
B93: COMPOSICAO | C93: 5940 | D93: PÁ CARREGADEIRA SOBRE RODAS, POTÊNCIA LÍQUIDA 128 HP, CAPACIDADE DA CAÇAMBA 1,7 A 2,8 M3, PESO OPERACIONAL 11632 KG - CHP DIURNO. AF_06/2014 | E93: CHP | F93: 0,0083000 | G93: 217,72 | H93: =ROUNDDOWN(F93*G93,2) -> 1.8
B94: COMPOSICAO | C94: 5942 | D94: PÁ CARREGADEIRA SOBRE RODAS, POTÊNCIA LÍQUIDA 128 HP, CAPACIDADE DA CAÇAMBA 1,7 A 2,8 M3, PESO OPERACIONAL 11632 KG - CHI DIURNO. AF_06/2014 | E94: CHI | F94: 0,0074000 | G94: 95,85 | H94: =ROUNDDOWN(F94*G94,2) -> 0.7
B95: COMPOSICAO | C95: 89883 | D95: CAMINHÃO BASCULANTE 18 M3, COM CAVALO MECÂNICO DE CAPACIDADE MÁXIMA DE TRAÇÃO COMBINADO DE 45000 KG, POTÊNCIA 330 CV, INCLUSIVE SEMIREBOQUE COM CAÇAMBA METÁLICA - CHP DIURNO. AF_12/2014 | E95: CHP | F95: 0,0153000 | G95: 348,45 | H95: =ROUNDDOWN(F95*G95,2) -> 5.33
B96: COMPOSICAO | C96: 89884 | D96: CAMINHÃO BASCULANTE 18 M3, COM CAVALO MECÂNICO DE CAPACIDADE MÁXIMA DE TRAÇÃO COMBINADO DE 45000 KG, POTÊNCIA 330 CV, INCLUSIVE SEMIREBOQUE COM CAÇAMBA METÁLICA - CHI DIURNO. AF_12/2014 | E96: CHI | F96: 0,0095000 | G96: 93,65 | H96: =ROUNDDOWN(F96*G96,2) -> 0.88
B97: PRODUÇÃO DA EQUIPE | E97: 1 | F97: CUSTO | H97: =SUM(H93:H96) -> 8.71
B98: TOTAL | H98: =H97/E97 -> 8.71 | I98: OK
B99: BDI % | H99: =1+$M$1 -> 1.2149
B100: TOTAL DO SERVIÇO - R$ | H100: =H98*H99 -> 10.581779
A102: 8 | B102: CODEVASF | E102: COMPOSIÇÃO DE PREÇO UNITÁRIO | I102: =H115 -> 2.57 | J102: =H117 -> 3.122293
B103: OBRA: | C103: =$C$2 -> PAVIMENTAÇÃO EM BLOQUETE SEXTAVADOS - RUA HERCULANO VELOSO - FELÍCIO DOS SANTOS/MG | G103: DATA: | H103: =$H$2 -> SETEMBRO/2023
B104: SERVIÇO: | C104: =VLOOKUP(A102,ORÇAMENTO!$A$10:$I$26,3) -> REGULARIZAÇÃO E COMPACTAÇÃO DE SUBLEITO | E104: SINAPI | F104: =VLOOKUP(A102,ORÇAMENTO!$A$10:$I$26,4) -> 100576 | G104: UNIDADE: | H104: =VLOOKUP(A102,ORÇAMENTO!$A$10:$I$26,5) -> M2
B106: TIPO ITEM | C106: CODIGO ITEM | D106: DESCRIÇÃO ITEM | E106: UNIDADE ITEM | F106: COEFICIENTE | G106: PRECO UNITARIO | H106: CUSTO TOTAL
B107: COMPOSICAO | C107: 5901 | D107: CAMINHÃO PIPA 10.000 L TRUCADO, PESO BRUTO TOTAL 23.000 KG, CARGA ÚTIL MÁXIMA 15.935 KG, DISTÂNCIA ENTRE EIXOS 4,8 M, POTÊNCIA 230 CV, INCLUSIVE TANQUE DE AÇO PARA TRANSPORTE DE ÁGUA | E107: CHP | F107: 0,0010000 | G107: 294,94 | H107: =ROUNDDOWN(F107*G107,2) -> 0.29
B108: COMPOSICAO | C108: 5903 | D108: CAMINHÃO PIPA 10.000 L TRUCADO, PESO BRUTO TOTAL 23.000 KG, CARGA ÚTIL MÁXIMA 15.935 KG, DISTÂNCIA ENTRE EIXOS 4,8 M, POTÊNCIA 230 CV, INCLUSIVE TANQUE DE AÇO PARA TRANSPORTE DE ÁGUA | E108: CHI | F108: 0,0070000 | G108: 72,55 | H108: 0.5
B109: COMPOSICAO | C109: 5932 | D109: MOTONIVELADORA POTÊNCIA BÁSICA LÍQUIDA (PRIMEIRA MARCHA) 125 HP, PESO BRUTO 13032 KG, LARGURA DA LÂMINA DE 3,7 M | E109: CHP | F109: 0,0001000 | G109: 262,71 | H109: 0.02
B110: COMPOSICAO | C110: 5934 | D110: MOTONIVELADORA POTÊNCIA BÁSICA LÍQUIDA (PRIMEIRA MARCHA) 125 HP, PESO BRUTO 13032 KG, LARGURA DA LÂMINA DE 3,7 M | E110: CHI | F110: 0,0080000 | G110: 109,40 | H110: 0.87
B111: COMPOSICAO | C111: 73436 | D111: ROLO COMPACTADOR VIBRATÓRIO PÉ DE CARNEIRO PARA SOLOS, POTÊNCIA 80 HP, PESO OPERACIONAL SEM/COM LASTRO 7,4 / 8,8 T, LARGURA DE TRABALHO 1,68 M | E111: CHP | F111: 0,0020000 | G111: 163,19 | H111: 0.32
B112: COMPOSICAO | C112: 88316 | D112: SERVENTE COM ENCARGOS COMPLEMENTARES | E112: H | F112: 0,0080000 | G112: 19,76 | H112: 0.15
B113: COMPOSICAO | C113: 93244 | D113: ROLO COMPACTADOR VIBRATÓRIO PÉ DE CARNEIRO PARA SOLOS, POTÊNCIA 80 HP, PESO OPERACIONAL SEM/COM LASTRO 7,4 / 8,8 T, LARGURA DE TRABALHO 1,68 M | E113: CHI | F113: 0,0060000 | G113: 71,18 | H113: 0.42
B114: PRODUÇÃO DA EQUIPE | E114: 1 | F114: CUSTO | H114: =SUM(H107:H113) -> 2.57
B115: TOTAL | H115: =H114/E114 -> 2.57 | I115: OK
B116: BDI % | H116: =1+$M$1 -> 1.2149
B117: TOTAL DO SERVIÇO - R$ | H117: =H115*H116 -> 3.122293
A119: 8.5 | B119: CODEVASF | E119: COMPOSIÇÃO DE PREÇO UNITÁRIO | I119: =H135 -> 12.47 | J119: =H137 -> 15.149803
B120: OBRA: | C120: =$C$2 -> PAVIMENTAÇÃO EM BLOQUETE SEXTAVADOS - RUA HERCULANO VELOSO - FELÍCIO DOS SANTOS/MG | G120: DATA: | H120: =$H$2 -> SETEMBRO/2023
B121: SERVIÇO: | C121: =VLOOKUP(A119,ORÇAMENTO!$A$10:$I$26,3) -> EXECUÇÃO E COMPACTAÇÃO DE BASE E OU SUB BASE PARA PAVIMENTAÇÃO DE SOLO DE COMPORTAMENTO LATERÍTICO - EXCLUSIVE SOLO, ESCAVAÇÃO, CARGA E TRANSPORTE | E121: SINAPI | F121: =VLOOKUP(A119,ORÇAMENTO!$A$10:$I$26,4) -> 96388 | G121: UNIDADE: | H121: =VLOOKUP(A119,ORÇAMENTO!$A$10:$I$26,5) -> M3
B123: TIPO ITEM | C123: CODIGO ITEM | D123: DESCRIÇÃO ITEM | E123: UNIDADE ITEM | F123: COEFICIENTE | G123: PRECO UNITARIO | H123: CUSTO TOTAL
B124: COMPOSICAO | C124: 5684 | D124: ROLO COMPACTADOR VIBRATÓRIO DE UM CILINDRO AÇO LISO, POTÊNCIA 80 HP, PESO OPERACIONAL MÁXIMO 8,1 T, IMPACTO DINÂMICO 16,15 / 9,5 T, LARGURA DE TRABALHO 1,68 M - CHP DIURNO. AF_06/2014 | E124: CHP | F124: 0,0030000 | G124: 159,98 | H124: =ROUNDDOWN(F124*G124,2) -> 0.47
B125: COMPOSICAO | C125: 5685 | D125: ROLO COMPACTADOR VIBRATÓRIO DE UM CILINDRO AÇO LISO, POTÊNCIA 80 HP, PESO OPERACIONAL MÁXIMO 8,1 T, IMPACTO DINÂMICO 16,15 / 9,5 T, LARGURA DE TRABALHO 1,68 M - CHI DIURNO. AF_06/2014 | E125: CHI | F125: 0,0230000 | G125: 69,53 | H125: 1.59
B126: COMPOSICAO | C126: 5901 | D126: CAMINHÃO PIPA 10.000 L TRUCADO, PESO BRUTO TOTAL 23.000 KG, CARGA ÚTIL MÁXIMA 15.935 KG, DISTÂNCIA ENTRE EIXOS 4,8 M, POTÊNCIA 230 CV, INCLUSIVE TANQUE DE AÇO PARA TRANSPORTE DE ÁGUA - CHP DIURNO. AF_06/2014 | E126: CHP | F126: 0,0040000 | G126: 294,94 | H126: 1.17
B127: COMPOSICAO | C127: 5903 | D127: CAMINHÃO PIPA 10.000 L TRUCADO, PESO BRUTO TOTAL 23.000 KG, CARGA ÚTIL MÁXIMA 15.935 KG, DISTÂNCIA ENTRE EIXOS 4,8 M, POTÊNCIA 230 CV, INCLUSIVE TANQUE DE AÇO PARA TRANSPORTE DE ÁGUA - CHI DIURNO. AF_06/2014 | E127: CHI | F127: 0,0220000 | G127: 72,55 | H127: 1.59
B128: COMPOSICAO | C128: 5932 | D128: MOTONIVELADORA POTÊNCIA BÁSICA LÍQUIDA (PRIMEIRA MARCHA) 125 HP, PESO BRUTO 13032 KG, LARGURA DA LÂMINA DE 3,7 M - CHP DIURNO. AF_06/2014 | E128: CHP | F128: 0,0080000 | G128: 262,71 | H128: 2.1
B129: COMPOSICAO | C129: 5934 | D129: MOTONIVELADORA POTÊNCIA BÁSICA LÍQUIDA (PRIMEIRA MARCHA) 125 HP, PESO BRUTO 13032 KG, LARGURA DA LÂMINA DE 3,7 M - CHI DIURNO. AF_06/2014 | E129: CHI | F129: 0,0190000 | G129: 109,40 | H129: 2.07
B130: COMPOSICAO | C130: 88316 | D130: SERVENTE COM ENCARGOS COMPLEMENTARES | E130: H | F130: 0,0260000 | G130: 19,76 | H130: 0.51
B131: INSUMO | C131: 4743 | D131: CASCALHO DE CAVA (FORNECIMENTO PREFEITURA) | E131: M3 | F131: 1 | H131: 0
B132: COMPOSICAO | C132: 96463 | D132: ROLO COMPACTADOR DE PNEUS, ESTATICO, PRESSAO VARIAVEL, POTENCIA 110 HP, PESO SEM/COM LASTRO 10,8/27 T, LARGURA DE ROLAGEM 2,30 M - CHP DIURNO. AF_06/2017 | E132: CHP | F132: 0,0040000 | G132: 218,21 | H132: 0.87
B133: COMPOSICAO | C133: 96464 | D133: ROLO COMPACTADOR DE PNEUS, ESTATICO, PRESSAO VARIAVEL, POTENCIA 110 HP, PESO SEM/COM LASTRO 10,8/27 T, LARGURA DE ROLAGEM 2,30 M - CHI DIURNO. AF_06/2017 | E133: CHI | F133: 0,0220000 | G133: 95,83 | H133: 2.1
B134: PRODUÇÃO DA EQUIPE | E134: 1 | F134: CUSTO | H134: =SUM(H124:H133) -> 12.47
B135: TOTAL | H135: =H134/E134 -> 12.47 | I135: OK
B136: BDI % | H136: =1+$M$1 -> 1.2149
B137: TOTAL DO SERVIÇO - R$ | H137: =H135*H136 -> 15.149803
A139: 9 | B139: CODEVASF | E139: COMPOSIÇÃO DE PREÇO UNITÁRIO | I139: =H154 -> 64.49 | J139: =H156 -> 78.348901
B140: OBRA: | C140: =$C$2 -> PAVIMENTAÇÃO EM BLOQUETE SEXTAVADOS - RUA HERCULANO VELOSO - FELÍCIO DOS SANTOS/MG | G140: DATA: | H140: =$H$2 -> SETEMBRO/2023
B141: SERVIÇO: | C141: =VLOOKUP(A139,ORÇAMENTO!$A$10:$I$26,3) -> EXECUÇÃO DE PAVIMENTO EM PISO INTERTRAVADO, COM BLOCO SEXTAVADO DE CONCRETO DE 25 X 25 CM, ESPESSURA 8 CM | E141: SINAPI | F141: =VLOOKUP(A139,ORÇAMENTO!$A$10:$I$26,4) -> 92394 | G141: UNIDADE: | H141: =VLOOKUP(A139,ORÇAMENTO!$A$10:$I$26,5) -> M2
B143: TIPO ITEM | C143: CODIGO ITEM | D143: DESCRIÇÃO ITEM | E143: UNIDADE ITEM | F143: COEFICIENTE | G143: PRECO UNITARIO | H143: CUSTO TOTAL
B144: INSUMO | C144: 370 | D144: AREIA MEDIA - POSTO JAZIDA/FORNECEDOR (RETIRADO NA JAZIDA, SEM TRANSPORTE) | E144: M3 | F144: 0,0568000 | G144: 97,50 | H144: =ROUNDDOWN(F144*G144,2) -> 5.53
B145: INSUMO | C145: 712 | D145: BLOQUETE/PISO INTERTRAVADO DE CONCRETO - MODELO SEXTAVADO / HEXAGONAL, 25 CM X 25 CM, E = 8 CM, RESISTENCIA DE 35 MPA (NBR 9781), COR NATURAL | E145: M2 | F145: 1,0038000 | G145: 51 | H145: 51.19
B146: INSUMO | C146: 4741 | D146: PO DE PEDRA (POSTO PEDREIRA/FORNECEDOR, SEM FRETE) | E146: M3 | F146: 0,0066000 | G146: 111,12 | H146: 0.73
B147: COMPOSICAO | C147: 88260 | D147: CALCETEIRO COM ENCARGOS COMPLEMENTARES | E147: H | F147: 0,1683000 | G147: 21,06 | H147: 3.54
B148: COMPOSICAO | C148: 88316 | D148: SERVENTE COM ENCARGOS COMPLEMENTARES | E148: H | F148: 0,1683000 | G148: 19,76 | H148: 3.32
B149: COMPOSICAO | C149: 91277 | D149: PLACA VIBRATÓRIA REVERSÍVEL COM MOTOR 4 TEMPOS A GASOLINA, FORÇA CENTRÍFUGA DE 25 KN (2500 KGF), POTÊNCIA 5,5 CV | E149: CHP | F149: 0,0055000 | G149: 8,77 | H149: 0.04
B150: COMPOSICAO | C150: 91278 | D150: PLACA VIBRATÓRIA REVERSÍVEL COM MOTOR 4 TEMPOS A GASOLINA, FORÇA CENTRÍFUGA DE 25 KN (2500 KGF), POTÊNCIA 5,5 CV | E150: CHI | F150: 0,0787000 | G150: 0,52 | H150: 0.04
B151: COMPOSICAO | C151: 91283 | D151: CORTADORA DE PISO COM MOTOR 4 TEMPOS A GASOLINA, POTÊNCIA DE 13 HP, COM DISCO DE CORTE DIAMANTADO SEGMENTADO PARA CONCRETO, DIÂMETRO DE 350 MM, FURO DE 1" (14 X 1") | E151: CHP | F151: 0,0038000 | G151: 9,69 | H151: 0.03
B152: COMPOSICAO | C152: 91285 | D152: CORTADORA DE PISO COM MOTOR 4 TEMPOS A GASOLINA, POTÊNCIA DE 13 HP, COM DISCO DE CORTE DIAMANTADO SEGMENTADO PARA CONCRETO, DIÂMETRO DE 350 MM, FURO DE 1" (14 X 1") | E152: CHI | F152: 0,0804000 | G152: 0,92 | H152: 0.07
B153: PRODUÇÃO DA EQUIPE | E153: 1 | F153: CUSTO | H153: =SUM(H144:H152) -> 64.49
B154: TOTAL | H154: =H153/E153 -> 64.49 | I154: OK
B155: BDI % | H155: =1+$M$1 -> 1.2149
B156: TOTAL DO SERVIÇO - R$ | H156: =H154*H155 -> 78.348901
A158: 10 | B158: CODEVASF | E158: COMPOSIÇÃO DE PREÇO UNITÁRIO | I158: =H167 -> 0.73 | J158: =H169 -> 0.886877
B159: OBRA: | C159: =$C$2 -> PAVIMENTAÇÃO EM BLOQUETE SEXTAVADOS - RUA HERCULANO VELOSO - FELÍCIO DOS SANTOS/MG | G159: DATA: | H159: =$H$2 -> SETEMBRO/2023
B160: SERVIÇO: | C160: =VLOOKUP(A158,ORÇAMENTO!$A$10:$I$26,3) -> TRANSPORTE COM CAMINHÃO BASCULANTE, EM VIA URBANA PAVIMENTADA | E160: SINAPI | F160: =VLOOKUP(A158,ORÇAMENTO!$A$10:$I$26,4) -> 95427 | G160: UNIDADE: | H160: =VLOOKUP(A158,ORÇAMENTO!$A$10:$I$26,5) -> M3XKM
B162: TIPO ITEM | C162: CODIGO ITEM | D162: DESCRIÇÃO ITEM | E162: UNIDADE ITEM | F162: COEFICIENTE | G162: PRECO UNITARIO | H162: CUSTO TOTAL
B163: COMPOSICAO | C163: 89883 | D163: CAMINHÃO BASCULANTE 18 M3, COM CAVALO MECÂNICO DE CAPACIDADE MÁXIMA DE TRAÇÃO COMBINADO DE 45000 KG, POTÊNCIA 330 CV, INCLUSIVE SEMIREBOQUE COM CAÇAMBA METÁLICA | E163: CHP | F163: 0,0019000 | G163: 348,45 | H163: =ROUNDDOWN(F163*G163,2) -> 0.66
B164: COMPOSICAO | C164: 89884 | D164: CAMINHÃO BASCULANTE 18 M3, COM CAVALO MECÂNICO DE CAPACIDADE MÁXIMA DE TRAÇÃO COMBINADO DE 45000 KG, POTÊNCIA 330 CV, INCLUSIVE SEMIREBOQUE COM CAÇAMBA METÁLICA | E164: CHI | F164: 0,0008000 | G164: 93,65 | H164: =ROUNDDOWN(F164*G164,2) -> 0.07
H165: =F165*G165 -> 0
B166: PRODUÇÃO DA EQUIPE | E166: 1 | F166: CUSTO | H166: =SUM(H163:H165) -> 0.73
B167: TOTAL | H167: =H166/E166 -> 0.73 | I167: OK
B168: BDI % | H168: =1+$M$1 -> 1.2149
B169: TOTAL DO SERVIÇO - R$ | H169: =H167*H168 -> 0.886877
A171: 11 | B171: CODEVASF | E171: COMPOSIÇÃO DE PREÇO UNITÁRIO | I171: =H180 -> 0.84 | J171: =H182 -> 1.020516
B172: OBRA: | C172: =$C$2 -> PAVIMENTAÇÃO EM BLOQUETE SEXTAVADOS - RUA HERCULANO VELOSO - FELÍCIO DOS SANTOS/MG | G172: DATA: | H172: =$H$2 -> SETEMBRO/2023
B173: SERVIÇO: | C173: TRANSPORTE COM CAMINHÃO CARROCERIA 9T, EM VIA URBANA PAVIMENTADA | E173: SINAPI | F173: =VLOOKUP(A171,ORÇAMENTO!$A$10:$I$26,4) -> 100948 | G173: UNIDADE: | H173: =VLOOKUP(A171,ORÇAMENTO!$A$10:$I$26,5) -> TXKM
B175: TIPO ITEM | C175: CODIGO ITEM | D175: DESCRIÇÃO ITEM | E175: UNIDADE ITEM | F175: COEFICIENTE | G175: PRECO UNITARIO | H175: CUSTO TOTAL
B176: COMPOSICAO | C176: 5824 | D176: CAMINHÃO TOCO, PBT 16.000 KG, CARGA ÚTIL MÁX. 10.685 KG, DIST. ENTRE EIXOS 4,8 M, POTÊNCIA 189 CV, INCLUSIVE CARROCERIA FIXA ABERTA DE MADEIRA P/ TRANSPORTE GERAL DE CARGA SECA | E176: CHP | F176: 0,0037000 | G176: 202,74 | H176: =ROUNDDOWN(F176*G176,2) -> 0.75
B177: COMPOSICAO | C177: 5826 | D177: CAMINHÃO TOCO, PBT 16.000 KG, CARGA ÚTIL MÁX. 10.685 KG, DIST. ENTRE EIXOS 4,8 M, POTÊNCIA 189 CV, INCLUSIVE CARROCERIA FIXA ABERTA DE MADEIRA P/ TRANSPORTE GERAL DE CARGA SECA | E177: CHI | F177: 0,0016000 | G177: 60,95 | H177: =ROUNDDOWN(F177*G177,2) -> 0.09
H178: =F178*G178 -> 0
B179: PRODUÇÃO DA EQUIPE | E179: 1 | F179: CUSTO | H179: =SUM(H176:H178) -> 0.84
B180: TOTAL | H180: =H179/E179 -> 0.84 | I180: OK
B181: BDI % | H181: =1+$M$1 -> 1.2149
B182: TOTAL DO SERVIÇO - R$ | H182: =H180*H181 -> 1.020516
A184: 12 | B184: CODEVASF | E184: COMPOSIÇÃO DE PREÇO UNITÁRIO | I184: =H199 -> 773.45 | J184: =H201 -> 939.664405
B185: OBRA: | C185: =$C$2 -> PAVIMENTAÇÃO EM BLOQUETE SEXTAVADOS - RUA HERCULANO VELOSO - FELÍCIO DOS SANTOS/MG | G185: DATA: | H185: =$H$2 -> SETEMBRO/2023
B186: SERVIÇO: | C186: =VLOOKUP(A184,ORÇAMENTO!$A$10:$I$26,3) -> EXECUÇÃO DE PASSEIO (CALÇADA) OU PISO DE CONCRETO COM CONCRETO MOLDADO IN LOCO, FEITO EM OBRA, ACABAMENTO CONVENCIONAL, NÃO ARMADO. | E186: SINAPI | F186: =VLOOKUP(A184,ORÇAMENTO!$A$10:$I$26,4) -> 94990 | G186: UNIDADE: | H186: =VLOOKUP(A184,ORÇAMENTO!$A$10:$I$26,5) -> M3
B188: TIPO ITEM | C188: CODIGO ITEM | D188: DESCRIÇÃO ITEM | E188: UNIDADE ITEM | F188: COEFICIENTE | G188: PRECO UNITARIO | H188: CUSTO TOTAL
B189: INSUMO | C189: 2692 | D189: DESMOLDANTE PROTETOR PARA FORMAS DE MADEIRA, DE BASE OLEOSA EMULSIONADA EM AGUA | E189: L | F189: 0,0213000 | G189: 5,92 | H189: =ROUNDDOWN(F189*G189,2) -> 0.12
B190: INSUMO | C190: 4509 | D190: SARRAFO *2,5 X 10* CM EM PINUS, MISTA OU EQUIVALENTE DA REGIAO - BRUTA | E190: M | F190: 3,1250000 | G190: 4,41 | H190: =ROUNDDOWN(F190*G190,2) -> 13.78
B191: INSUMO | C191: 4517 | D191: SARRAFO *2,5 X 7,5* CM EM PINUS, MISTA OU EQUIVALENTE DA REGIAO - BRUTA | E191: M | F191: 2,5000000 | G191: 3,04 | H191: 7.6
B192: INSUMO | C192: 5068 | D192: PREGO DE ACO POLIDO COM CABECA 17 X 21 (2 X 11) | E192: KG | F192: 0,2994000 | G192: 19,23 | H192: 5.75
B193: COMPOSICAO | C193: 88262 | D193: CARPINTEIRO DE FORMAS COM ENCARGOS COMPLEMENTARES | E193: H | F193: 1,6268000 | G193: 27,05 | H193: 44
B194: COMPOSICAO | C194: 88309 | D194: PEDREIRO COM ENCARGOS COMPLEMENTARES | E194: H | F194: 1,4149000 | G194: 27,45 | H194: 38.83
B195: COMPOSICAO | C195: 88316 | D195: SERVENTE COM ENCARGOS COMPLEMENTARES | E195: H | F195: 3,0417000 | G195: 19,76 | H195: 60.1
B196: COMPOSICAO | C196: 94964 | D196: CONCRETO FCK = 20MPA, TRAÇO 1:2,7:3 (EM MASSA SECA DE CIMENTO/ AREIA MÉDIA/ BRITA 1) - PREPARO MECÂNICO COM BETONEIRA 400 L. | E196: M3 | F196: 1,2315000 | G196: 489,87 | H196: 603.27
B198: PRODUÇÃO DA EQUIPE | E198: 1 | F198: CUSTO | H198: =SUM(H189:H197) -> 773.45
B199: TOTAL | H199: =H198/E198 -> 773.45 | I199: OK
B200: BDI % | H200: =1+$M$1 -> 1.2149
B201: TOTAL DO SERVIÇO - R$ | H201: =H199*H200 -> 939.664405
A203: 13 | B203: CODEVASF | E203: COMPOSIÇÃO DE PREÇO UNITÁRIO | I203: =H218 -> 47.86 | J203: =H220 -> 58.145114
B204: OBRA: | C204: =$C$2 -> PAVIMENTAÇÃO EM BLOQUETE SEXTAVADOS - RUA HERCULANO VELOSO - FELÍCIO DOS SANTOS/MG | G204: DATA: | H204: =$H$2 -> SETEMBRO/2023
B205: SERVIÇO: | C205: =VLOOKUP(A203,ORÇAMENTO!$A$10:$I$26,3) -> GUIA (MEIO-FIO) E SARJETA CONJUGADOS DE CONCRETO, MOLDADA IN LOCO EM TRECHO RETO COM EXTRUSORA, 45 CM BASE (15 CM BASE DA GUIA + SARJETA (30 X 0,05))X 22 CM ALTURA | E205: SINAPI | F205: =VLOOKUP(A203,ORÇAMENTO!$A$10:$I$26,4) -> 94267 | G205: UNIDADE: | H205: =VLOOKUP(A203,ORÇAMENTO!$A$10:$I$26,5) -> M
B207: TIPO ITEM | C207: CODIGO ITEM | D207: DESCRIÇÃO ITEM | E207: UNIDADE ITEM | F207: COEFICIENTE | G207: PRECO UNITARIO | H207: CUSTO TOTAL
B208: INSUMO | C208: 370 | D208: AREIA MEDIA - POSTO JAZIDA/FORNECEDOR (RETIRADO NA JAZIDA, SEM TRANSPORTE) | E208: M3 | F208: 0,0150000 | G208: 97,50 | H208: =ROUNDDOWN(F208*G208,2) -> 1.46
B209: INSUMO | C209: 34492a | D209: CONCRETO USINADO BOMBEAVEL, CLASSE DE RESISTENCIA C20, COM BRITA 0 E 1, SLUMP = 100 +/- 20 MM | E209: M3 | F209: =(0.15+0.13)*0.22 /2 + (0.3 *0.05) -> 0.0458 | G209: 550,00 | H209: 25.19
B210: COMPOSICAO | C210: 88243 | D210: AJUDANTE ESPECIALIZADO COM ENCARGOS COMPLEMENTARES | E210: H | F210: 0,1090000 | G210: 21,76 | H210: 2.37
B211: COMPOSICAO | C211: 88309 | D211: PEDREIRO COM ENCARGOS COMPLEMENTARES | E211: H | F211: 0,2440000 | G211: 27,45 | H211: 6.69
B212: COMPOSICAO | C212: 88316 | D212: SERVENTE COM ENCARGOS COMPLEMENTARES | E212: H | F212: 0,4870000 | G212: 19,76 | H212: 9.62
B213: COMPOSICAO | C213: 88631 | D213: ARGAMASSA TRAÇO 1:4 (EM VOLUME DE CIMENTO E AREIA MÉDIA ÚMIDA), PREPARO MANUAL | E213: M3 | F213: 0,0030000 | G213: 575,87 | H213: 1.72
B214: COMPOSICAO | C214: 92960 | D214: MÁQUINA EXTRUSORA DE CONCRETO PARA GUIAS E SARJETAS, MOTOR A DIESEL, POTÊNCIA 14 CV | E214: CHP | F214: 0,0180000 | G214: 18,46 | H214: 0.33
B215: COMPOSICAO | C215: 92961 | D215: MÁQUINA EXTRUSORA DE CONCRETO PARA GUIAS E SARJETAS, MOTOR A DIESEL, POTÊNCIA 14 CV | E215: CHI | F215: 0,0910000 | G215: 5,38 | H215: 0.48
B217: PRODUÇÃO DA EQUIPE | E217: 1 | F217: CUSTO | H217: =SUM(H208:H216) -> 47.86
B218: TOTAL | H218: =H217/E217 -> 47.86 | I218: OK
B219: BDI % | H219: =1+$M$1 -> 1.2149
B220: TOTAL DO SERVIÇO - R$ | H220: =H218*H219 -> 58.145114
A222: 14 | B222: CODEVASF | E222: COMPOSIÇÃO DE PREÇO UNITÁRIO | I222: =H236 -> 386.98 | J222: =H238 -> 470.142002
B223: OBRA: | C223: =$C$2 -> PAVIMENTAÇÃO EM BLOQUETE SEXTAVADOS - RUA HERCULANO VELOSO - FELÍCIO DOS SANTOS/MG | G223: DATA: | H223: =$H$2 -> SETEMBRO/2023
B224: SERVIÇO: | C224: =VLOOKUP(A222,ORÇAMENTO!$A$10:$I$29,3) -> FORNECIMENTO E INSTALAÇÃO DE PLACA DE SINALIZAÇÃO VIÁRIA - REGULAMENTAÇÃO 0,60MX0,60M, SUPORTE INCLUSO | E224: SINAPI | F224: =VLOOKUP(A222,ORÇAMENTO!$A$10:$I$29,4) -> CPU.4 | G224: UNIDADE: | H224: =VLOOKUP(A222,ORÇAMENTO!$A$10:$I$29,5) -> UNID.
B226: TIPO ITEM | C226: CODIGO ITEM | D226: DESCRIÇÃO ITEM | E226: UNIDADE ITEM | F226: COEFICIENTE | G226: PRECO UNITARIO | H226: CUSTO TOTAL
B227: COMPOSICAO | C227: 94962 | D227: CONCRETO MAGRO PARA LASTRO, TRAÇO 1:4,5:4,5 (EM MASSA SECA DE CIMENTO/ AREIA MÉDIA/ BRITA 1) | E227: M3 | F227: 0.024 | G227: 402,82 | H227: =ROUNDDOWN(F227*G227,2) -> 9.66
B228: COMPOSICAO | C228: 93358 | D228: ESCAVAÇÃO MANUAL DE VALA COM PROFUNDIDADE MENOR OU IGUAL A 1,30 M | E228: M3 | F228: 0.024 | G228: 78,17 | H228: 1.87
B229: COMPOSICAO | C229: 88309 | D229: PEDREIRO COM ENCARGOS COMPLEMENTARES | E229: H | F229: 0.2 | G229: 27,45 | H229: 5.49
B230: COMPOSICAO | C230: 88316 | D230: SERVENTE COM ENCARGOS COMPLEMENTARES | E230: H | F230: 1 | G230: 19,76 | H230: 19.76
B231: COMPOSICAO | C231: 103670 | D231: LANÇAMENTO COM USO DE BALDES, ADENSAMENTO E ACABAMENTO DE CONCRETO EM ESTRUTURAS | E231: M3 | F231: 0.024 | G231: 281,78 | H231: 6.76
... 22 more rows

Sheet BDI SERV
B1: DETALHAMENTO DO BDI - SERVIÇOS
B4: Item | C4: Descrição dos Serviços | D4: % | E4: %
D5: PV | E5: CD
B7: 1 | C7: ADMINISTRAÇÃO CENTRAL | E7: 4.01
B8: 1.1 | C8: ESCRITÓRIO CENTRAL
B9: 1.2 | C9: VIAGENS
B10: 1.3 | C10: OUTROS
B12: 2 | C12: IMPOSTOS E TAXAS | D12: =SUM(D13:D15) -> 5.65 | E12: =SUM(E13:E15) -> 7.06
B13: 2.1 | C13: ISS (*) | D13: =5*0.4 -> 2 | E13: =ROUND(D13*1.2515,2) -> 2.5
B14: 2.2 | C14: PIS | D14: 0.65 | E14: =ROUND(D14*1.2515,2) -> 0.81
B15: 2.3 | C15: Cofins | D15: 3 | E15: =ROUND(D15*1.2515,2) -> 3.75
B17: 3 | C17: TAXA DE RISCO | E17: =SUM(E18:E21) -> 0.96
B18: 3.1 | C18: SEGURO | E18: 0.2
B19: 3.2 | C19: RISCO | E19: 0.56
B20: 3.3 | C20: GARANTIA | E20: 0.2
B22: 4 | C22: DESPESAS FINANCEIRAS | E22: 1.11
B24: 5 | C24: LUCRO | E24: 8
C26: BDI - CALCULADO | E26: =ROUND((((1+(E7+E17)/100)*(1+E22/100)*(1+E24/100)/(1-D12/100)-1)*100),2) -> 21.49
A28: BDI = ((1+((AC+S+R+G)/100))x(1+DF/100)x(1+L/100)/(1-I/100)-1)*100
B30: BDI (CALCULADO): | D30: =ROUND((((1+((E7+E17)/100))*(1+E22/100)*(1+E24/100))/(1-D12/100)-1)*100,2) -> 21.49 | E30: %
A32: (*) ISS CONFORME LEI COMPLEMENTAR Nº 523/2003 - QUANT. ESTIMADA DE MATERIAIS = 60%
A36: BDI EM CONFORMIDADE COM OS ACÓRDÃOS Nº 2369/2011 e ACÓRDÃO Nº 2.622/2013 - TCU - PLENÁRIO

Sheet CRONOGRAMA
B1: CRONOGRAMA FÍSICO-FINANCEIRO
B2: OBRA: | C2: =ORÇAMENTO!C5 -> PAVIMENTAÇÃO EM BLOQUETE SEXTAVADOS - RUA HERCULANO VELOSO - FELÍCIO DOS SANTOS/MG | F2: VALOR: | G2: =ORÇAMENTO!I29 -> 1098236
F3: PRAZO: | G3: 120 DIAS
B5: ITEM | C5: ETAPAS/DESCRIÇAO | D5: FISICO/ FINANCEIRO | E5: TOTAL ETAPAS | F5: MÊS 1 | G5: MÊS 2 | H5: MÊS 3 | I5: MÊS 4 | J5: TOTAL
A6: A | B6: =VLOOKUP(A6,ORÇAMENTO!$A$9:$I$29,2) -> 1 | C6: =VLOOKUP(A6,ORÇAMENTO!$A$9:$I$29,3) -> SERVIÇOS PRELIMINARES | D6: FISICO | E6: =ROUND(E7/$G$2,4) -> 0.0732 | F6: 0.4 | G6: 0.15 | H6: 0.15 | I6: 0.3 | J6: =SUM(F6:I6) -> 1
D7: FINANCEIRO | E7: =ORÇAMENTO!I9 -> 80368.07 | F7: =ROUND($E$7*F6,2) -> 32147.23 | G7: =ROUND($E$7*G6,2) -> 12055.21 | H7: =ROUND($E$7*H6,2) -> 12055.21 | I7: =ROUND($E$7*I6,2) -> 24110.42 | J7: 80368.07
A8: B | B8: =VLOOKUP(A8,ORÇAMENTO!$A$9:$I$29,2) -> 2 | C8: =VLOOKUP(A8,ORÇAMENTO!$A$9:$I$29,3) -> PAVIMENTAÇÃO | D8: FISICO | E8: =ROUND(E9/$G$2,4) -> 0.5155 | F8: 0.25 | G8: 0.3 | H8: 0.3 | I8: 0.15 | J8: 1
D9: FINANCEIRO | E9: =ORÇAMENTO!I15 -> 566177.42 | F9: =ROUND($E$9*F8,2) -> 141544.36 | G9: =ROUND($E$9*G8,2) -> 169853.23 | H9: =ROUND($E$9*H8,2) -> 169853.23 | I9: =ROUND($E$9*I8,2) -> 84926.61 | J9: 566177.43
A10: C | B10: =VLOOKUP(A10,ORÇAMENTO!$A$9:$I$29,2) -> 3 | C10: =VLOOKUP(A10,ORÇAMENTO!$A$9:$I$29,3) -> TRANSPORTE DE MATERIAIS | D10: FISICO | E10: =ROUND(E11/$G$2,4) -> 0.1065 | F10: 0.3 | G10: 0.25 | H10: 0.25 | I10: 0.2 | J10: 1
D11: FINANCEIRO | E11: =ORÇAMENTO!I21 -> 116946.27 | F11: =ROUND($E$11*F10,2) -> 35083.88 | G11: =ROUND($E$11*G10,2) -> 29236.57 | H11: =ROUND($E$11*H10,2) -> 29236.57 | I11: =ROUND($E$11*I10,2) -> 23389.25 | J11: 116946.27
A12: D | B12: =VLOOKUP(A12,ORÇAMENTO!$A$9:$I$29,2) -> 4 | C12: =VLOOKUP(A12,ORÇAMENTO!$A$9:$I$29,3) -> DRENAGEM E OBRAS COMPLEMENTARES | D12: FISICO | E12: =ROUND(E13/$G$2,4) -> 0.3048 | G12: 0.25 | H12: 0.3 | I12: 0.45 | J12: 1
D13: FINANCEIRO | E13: =ORÇAMENTO!I24 -> 334744.24 | F13: =ROUND($E$13*F12,2) -> 0 | G13: =ROUND($E$13*G12,2) -> 83686.06 | H13: =ROUND($E$13*H12,2) -> 100423.27 | I13: =ROUND($E$13*I12,2) -> 150634.91 | J13: 334744.24
B14: TOTAL | D14: FISICO | E14: =SUM(F14:H14) -> 0.7422583306 | F14: =F15/E15 -> 0.1901007343 | G14: =G15/$E$15 -> 0.2684587557 | H14: =H15/$E$15 -> 0.2836988407 | I14: =I15/$E$15 -> 0.2577416785 | J14: 1.000000009
D15: FINANCEIRO | E15: =E11+E9+E7+E13 -> 1098236 | F15: =F11+F9+F7+F13 -> 208775.47 | G15: =G11+G9+G7+G13 -> 294831.07 | H15: =H11+H9+H7+H13 -> 311568.28 | I15: =I11+I9+I7+I13 -> 283061.19 | J15: =ROUNDUP(SUM(F15:I15),2)-0.01 -> 1098236
B17: OBSERVAÇÕES:
